fUST/lending_fUST_20240831
["ID","MTS","AMOUNT","RATE_DAILY","PERIOD"]
[336699368,1725040245568,-2478.234386,0.00034738,14]
[336699369,1725040245578,-3011.64,0.00034738,31]
[336699370,1725040245588,-10955.97,0.00034738,8]
[336699372,1725040245599,-1052.36,0.00034738,21]
[336699373,1725040245609,-500.0,0.00034738,31]
[336699374,1725040245619,-500.0,0.00034738,31]
[336699375,1725040245628,-1536.56,0.00034738,31]
[336699376,1725040245638,-500.0,0.00034738,31]
[336699377,1725040245648,-500.0,0.00034738,31]
[336699378,1725040245658,-500.0,0.00034738,31]
[336699379,1725040245667,-500.0,0.00034738,31]
[336699381,1725040245678,-480.620597,0.00034738,14]
[336699383,1725040245687,-480.620597,0.00034738,14]
[336699385,1725040245700,-1271.842214,0.00034738,14]
[336699387,1725040245710,-1422.85,0.00034738,31]
[336699389,1725040245719,-500.0,0.00034738,31]
[336699391,1725040245729,-1271.842214,0.00034738,14]
[336699393,1725040245739,-500.0,0.00034738,31]
[336699395,1725040245749,-151.0,0.00034738,14]
[336699398,1725040245759,-500.0,0.00034738,31]
[336699399,1725040245769,-352.10720609,0.00034738,31]
[336699402,1725040245781,-500.0,0.00034738,31]
[336699403,1725040245791,-500.0,0.00034738,31]
[336699406,1725040245801,-500.0,0.00034738,31]
[336699408,1725040245811,-500.0,0.00034738,31]
[336699410,1725040245823,-500.0,0.00034738,31]
[336699411,1725040245834,-1456.20048969,0.00034738,31]
[336699412,1725040245976,-159.21951031,0.00034738,31]
[336699413,1725040245986,-425.59048969,0.00034738,31]
[336699415,1725040246080,-74.40951031,0.00034738,31]
[336699416,1725040246091,-500.0,0.00034738,31]
[336699417,1725040246100,-429.83048553,0.00034738,31]
[336699418,1725040246112,-646.58951447,0.00034738,31]
[336699419,1725040246121,-500.0,0.00034738,31]
[336699420,1725040246130,-500.0,0.00034738,31]
[336699421,1725040246140,-500.0,0.00034738,31]
[336699422,1725040246150,-500.0,0.00034738,31]
[336699423,1725040246159,-1265.65,0.00034738,31]
[336699425,1725040246168,-500.0,0.00034738,31]
[336699426,1725040246177,-500.0,0.00034738,31]
[336699427,1725040246186,-500.0,0.00034738,31]
[336699428,1725040246197,-500.0,0.00034738,31]
[336699429,1725040246207,-2914.32,0.00034738,31]
[336699430,1725040246216,-500.0,0.00034738,31]
[336699431,1725040246226,-500.0,0.00034738,31]
[336699432,1725040246237,-500.0,0.00034738,31]
[336699433,1725040246247,-500.0,0.00034738,31]
[336699434,1725040246257,-153.0,0.00034741,2]
[336699435,1725040246267,-500.0,0.00034754,31]
[336699436,1725040246276,-500.0,0.00034754,31]
[336699437,1725040246286,-500.0,0.00034754,31]
[336699438,1725040246296,-500.0,0.00034754,31]
[336699439,1725040246305,-500.0,0.00034754,31]
[336699440,1725040246315,-500.0,0.00034754,31]
[336699441,1725040246325,-500.0,0.00034754,31]
[336699442,1725040246334,-500.0,0.00034754,31]
[336699443,1725040246344,-500.0,0.00034754,31]
[336699444,1725040246353,-500.0,0.00034754,31]
[336699445,1725040246362,-500.0,0.00034754,31]
[336699446,1725040246372,-500.0,0.00034754,31]
[336699447,1725040246381,-500.0,0.00034754,31]
[336699448,1725040246391,-500.0,0.00034754,31]
[336699449,1725040246400,-500.0,0.00034754,31]
[336699450,1725040246410,-500.0,0.00034754,31]
[336699451,1725040246419,-500.0,0.00034754,31]
[336699452,1725040246429,-500.0,0.00034754,31]
[336699453,1725040246438,-500.0,0.00034754,31]
[336699454,1725040246448,-500.0,0.00034754,31]
[336699455,1725040246457,-500.0,0.00034754,31]
[336699456,1725040246467,-500.0,0.00034754,31]
[336699457,1725040246476,-500.0,0.00034754,31]
[336699458,1725040246485,-500.0,0.00034754,31]
[336699459,1725040246495,-500.0,0.00034754,31]
[336699460,1725040246504,-500.0,0.00034754,31]
[336699461,1725040246514,-500.0,0.00034754,31]
[336699462,1725040246523,-500.0,0.00034754,31]
[336699463,1725040246532,-393.64226258,0.00034754,31]
[336699464,1725040246541,-500.0,0.00034754,31]
[336699465,1725040246550,-500.0,0.00034754,31]
[336699466,1725040246559,-500.0,0.00034754,31]
[336699467,1725040246569,-500.0,0.00034754,31]
[336699468,1725040246579,-500.0,0.00034754,31]
[336699469,1725040246590,-500.0,0.00034754,31]
[336699470,1725040246600,-500.0,0.00034754,31]
[336699471,1725040246609,-500.0,0.00034754,31]
[336699472,1725040246619,-500.0,0.00034754,31]
[336699473,1725040246629,-533.79,0.00034754,31]
[336699474,1725040246638,-500.0,0.00034754,31]
[336699475,1725040246647,-500.0,0.00034754,31]
[336699476,1725040246657,-501.39464723,0.00034754,31]
[336699477,1725040246667,-500.0,0.00034754,31]
[336699478,1725040246676,-500.0,0.00034754,31]
[336699479,1725040246686,-500.0,0.00034754,31]
[336699480,1725040246695,-500.0,0.00034754,31]
[336699481,1725040246704,-500.0,0.00034754,31]
[336699482,1725040246713,-500.0,0.00034754,31]
[336699483,1725040246722,-500.0,0.00034754,31]
[336699484,1725040246731,-500.0,0.00034754,31]
[336699485,1725040246741,-4692.45,0.00034754,31]
[336699486,1725040246750,-500.0,0.00034754,31]
[336699487,1725040246759,-500.0,0.00034754,31]
[336699488,1725040246769,-500.0,0.00034754,31]
[336699489,1725040246781,-505.98289776,0.00034754,31]
[336699490,1725040246790,-500.0,0.00034754,31]
[336699491,1725040246799,-500.0,0.00034754,31]
[336699492,1725040246809,-500.0,0.00034754,31]
[336699493,1725040246818,-500.0,0.00034754,31]
[336699494,1725040246828,-500.0,0.00034754,31]
[336699495,1725040246837,-500.0,0.00034754,31]
[336699496,1725040246847,-500.0,0.00034754,31]
[336699497,1725040246859,-500.0,0.00034754,31]
[336699498,1725040246869,-500.0,0.00034754,31]
[336699499,1725040246879,-500.0,0.00034754,31]
[336699500,1725040246888,-1918.35,0.00034754,31]
[336699501,1725040246898,-500.0,0.00034754,31]
[336699502,1725040246907,-500.0,0.00034754,31]
[336699503,1725040246916,-500.0,0.00034754,31]
[336699504,1725040246926,-500.0,0.00034754,31]
[336699505,1725040246936,-2871.07,0.00034754,31]
[336699506,1725040246945,-500.0,0.00034754,31]
[336699507,1725040246955,-539.08323609,0.00034754,31]
[336699508,1725040246964,-500.0,0.00034754,31]
[336699509,1725040246973,-500.0,0.00034754,31]
[336699510,1725040246983,-1026.51,0.00034754,31]
[336699511,1725040246992,-504.84076988,0.00034754,31]
[336699512,1725040247001,-500.0,0.00034754,31]
[336699513,1725040247011,-502.94565628,0.00034754,31]
[336699514,1725040247021,-500.0,0.00034754,31]
[336699515,1725040247030,-500.0,0.00034754,31]
[336699516,1725040247040,-500.0,0.00034754,31]
[336699517,1725040247049,-500.0,0.00034754,31]
[336699518,1725040247059,-1028.85,0.00034754,31]
[336699519,1725040247068,-500.0,0.00034754,31]
[336699520,1725040247078,-500.0,0.00034754,31]
[336699521,1725040247087,-500.0,0.00034754,31]
[336699522,1725040247097,-500.0,0.00034754,31]
[336699523,1725040247107,-500.0,0.00034754,31]
[336699524,1725040247116,-500.0,0.00034754,31]
[336699525,1725040247126,-500.0,0.00034754,31]
[336699526,1725040247136,-298.4339,0.00034754,14]
[336699527,1725040247145,-500.0,0.00034754,31]
[336699528,1725040247156,-500.0,0.00034754,31]
[336699529,1725040247167,-151.0,0.00034754,14]
[336699530,1725040247177,-552.79817849,0.00034754,31]
[336699531,1725040247188,-500.0,0.00034754,31]
[336699532,1725040247197,-500.0,0.00034754,31]
[336699533,1725040247206,-500.0,0.00034754,2]
[336699534,1725040247216,-500.0,0.00034754,31]
[336699535,1725040247226,-500.0,0.00034754,31]
[336699536,1725040247235,-500.0,0.00034754,31]
[336699537,1725040247244,-151.0,0.00034754,14]
[336699538,1725040247254,-500.0,0.00034754,31]
[336699539,1725040247264,-500.0,0.00034754,31]
[336699540,1725040247274,-230.345981,0.00034754,14]
[336699541,1725040247285,-500.0,0.00034754,31]
[336699542,1725040247299,-500.0,0.00034754,31]
[336699543,1725040247309,-500.0,0.00034754,31]
[336699544,1725040247321,-151.0,0.00034754,14]
[336699545,1725040247331,-500.0,0.00034754,31]
[336699546,1725040247342,-266.422145,0.00034754,14]
[336699547,1725040247351,-553.96,0.00034754,31]
[336699548,1725040247361,-500.0,0.00034754,31]
[336699549,1725040247371,-500.0,0.00034754,31]
[336699550,1725040247383,-500.0,0.00034754,31]
[336699551,1725040247394,-500.0,0.00034754,31]
[336699552,1725040247405,-500.0,0.00034754,31]
[336699553,1725040247417,-500.0,0.00034754,31]
[336699554,1725040247428,-502.98860748,0.00034754,31]
[336699555,1725040247437,-223.99645179,0.00034754,31]
[336699556,1725040247447,-500.0,0.00034754,31]
[336699557,1725040247456,-1405.760249,0.00034754,14]
[336699558,1725040247466,-492.167598,0.00034764,14]
[336699559,1725040247476,-153.0,0.00034797,2]
[336699560,1725040247485,-409.5167953,0.00034797,2]
[336699561,1725040247494,-153.0,0.00034797,2]
[336699562,1725040247505,-153.0,0.00034797,2]
[336699563,1725040247514,-409.5167953,0.00034797,2]
[336699564,1725040247523,-207.8512623,0.00034797,2]
[336699565,1725040247533,-153.0,0.00034797,2]
[336699566,1725040247542,-409.5167953,0.00034797,2]
[336699567,1725040247552,-207.8512623,0.00034797,2]
[336699568,1725040247561,-153.0,0.00034797,2]
[336699569,1725040247695,-153.0,0.00034797,2]
[336699570,1725040247704,-207.8512623,0.00034797,2]
[336699571,1725040247715,-153.0,0.00034797,2]
[336699572,1725040247725,-409.5167953,0.00034797,2]
[336699573,1725040247733,-409.5167953,0.00034797,2]
[336699574,1725040247743,-207.8512623,0.00034797,2]
[336699575,1725040247752,-153.0,0.00034797,2]
[336699576,1725040247762,-150.112239,0.000348,7]
[336699577,1725040247771,-311.65335296,0.00034839,31]
[336699578,1725040247784,-500.0,0.00034839,31]
[336699579,1725040247793,-500.0,0.00034839,31]
[336699580,1725040247802,-1171.97,0.00034839,31]
[336699581,1725040247811,-500.0,0.00034839,31]
[336699582,1725040247822,-500.0,0.00034839,31]
[336699583,1725040247832,-500.0,0.00034839,31]
[336699584,1725040247843,-504.02468432,0.00034839,31]
[336699585,1725040247855,-500.0,0.00034839,31]
[336699586,1725040247864,-500.0,0.00034839,31]
[336699587,1725040247874,-500.0,0.00034839,31]
[336699588,1725040247883,-500.0,0.00034839,31]
[336699589,1725040247893,-500.0,0.00034839,31]
[336699590,1725040247902,-500.0,0.00034839,31]
[336699591,1725040247911,-500.0,0.00034839,31]
[336699592,1725040247923,-500.0,0.00034839,31]
[336699593,1725040247932,-500.0,0.00034839,31]
[336699594,1725040247942,-500.0,0.00034839,31]
[336699595,1725040247953,-500.0,0.00034839,31]
[336699596,1725040247964,-500.0,0.00034839,31]
[336699597,1725040247974,-500.0,0.00034839,31]
[336699598,1725040247983,-2624.71,0.00034839,31]
[336699599,1725040247993,-551.5,0.00034839,31]
[336699600,1725040248002,-500.0,0.00034839,31]
[336699601,1725040248012,-500.0,0.00034839,31]
[336699602,1725040248021,-500.0,0.00034839,31]
[336699603,1725040248031,-500.0,0.00034839,31]
[336699604,1725040248040,-424.75559775,0.00034839,31]
[336699605,1725040248049,-500.0,0.00034839,31]
[336699606,1725040248059,-500.0,0.00034839,31]
[336699607,1725040248070,-500.0,0.00034839,31]
[336699608,1725040248080,-151.0,0.00034839,14]
[336699609,1725040248091,-500.0,0.00034839,31]
[336699610,1725040248100,-500.0,0.00034839,31]
[336699611,1725040248109,-500.0,0.00034839,31]
[336699612,1725040248118,-500.0,0.00034839,31]
[336699613,1725040248128,-500.0,0.00034839,31]
[336699614,1725040248138,-500.0,0.00034839,31]
[336699615,1725040248148,-500.0,0.00034839,31]
[336699616,1725040248157,-500.0,0.00034839,31]
[336699617,1725040248167,-500.0,0.00034839,31]
[336699618,1725040248176,-500.0,0.00034839,31]
[336699619,1725040248185,-500.0,0.00034839,31]
[336699620,1725040248195,-500.0,0.00034839,31]
[336699621,1725040248204,-500.0,0.00034839,31]
[336699622,1725040248214,-500.0,0.00034839,31]
[336699623,1725040248223,-500.0,0.00034839,31]
[336699624,1725040248233,-500.0,0.00034839,30]
[336699625,1725040248242,-500.0,0.00034839,31]
[336699626,1725040248252,-500.0,0.00034839,31]
[336699627,1725040248262,-500.0,0.00034839,31]
[336699628,1725040248271,-500.0,0.00034839,31]
[336699629,1725040248280,-500.0,0.00034839,7]
[336699630,1725040248290,-500.0,0.00034839,31]
[336699631,1725040248300,-151.0,0.00034839,14]
[336699632,1725040248312,-500.0,0.00034839,31]
[336699633,1725040248322,-500.0,0.00034839,31]
[336699634,1725040248333,-500.0,0.00034839,31]
[336699635,1725040248344,-500.0,0.00034839,31]
[336699636,1725040248354,-500.0,0.00034839,31]
[336699637,1725040248364,-500.0,0.00034839,31]
[336699638,1725040248373,-500.0,0.00034839,31]
[336699639,1725040248383,-500.0,0.00034839,31]
[336699640,1725040248392,-500.0,0.00034839,31]
[336699641,1725040248402,-500.0,0.00034839,31]
[336699642,1725040248411,-151.0,0.00034839,14]
[336699643,1725040248422,-159.403807,0.00034839,14]
[336699644,1725040248432,-500.0,0.00034839,31]
[336699645,1725040248441,-500.0,0.00034839,31]
[336699646,1725040248451,-223.738434,0.00034839,14]
[336699647,1725040248460,-500.0,0.00034839,31]
[336699648,1725040248469,-223.738434,0.00034839,14]
[336699649,1725040248479,-500.0,0.00034839,31]
[336699650,1725040248488,-500.0,0.00034839,31]
[336699651,1725040248498,-500.0,0.00034839,31]
[336699652,1725040248507,-500.0,0.00034839,14]
[336699653,1725040248517,-500.0,0.00034839,20]
[336699654,1725040248526,-500.0,0.00034839,31]
[336699655,1725040248535,-500.0,0.00034839,31]
[336699656,1725040248546,-500.0,0.00034839,7]
[336699657,1725040248555,-500.0,0.00034839,31]
[336699658,1725040248565,-500.0,0.00034839,31]
[336699659,1725040248575,-500.0,0.00034839,31]
[336699660,1725040248584,-500.0,0.00034839,31]
[336699661,1725040248594,-500.0,0.00034839,31]
[336699662,1725040248603,-500.0,0.00034839,31]
[336699663,1725040248614,-500.0,0.00034839,31]
[336699664,1725040248624,-2478.234386,0.00034839,14]
[336699665,1725040248634,-2478.234386,0.00034839,14]
[336699666,1725040248643,-480.620597,0.00034839,14]
[336699667,1725040248653,-480.620597,0.00034839,14]
[336699668,1725040248664,-1271.842214,0.00034839,14]
[336699669,1725040248673,-1271.842214,0.00034839,14]
[336699670,1725040248683,-221.183518,0.00034839,14]
[336699671,1725040248692,-500.0,0.00034849,31]
[336699672,1725040248702,-433.98195413,0.00034849,31]
[336699673,1725040248712,-535.03440884,0.00034849,31]
[336699674,1725040248722,-508.77655925,0.00034849,31]
[336699675,1725040248988,-70.44344075,0.00034849,31]
[336699676,1725040248998,-500.0,0.00034849,31]
[336699677,1725040249007,-20.18155925,0.00034849,31]
[336699678,1725040249018,-479.81844075,0.00034849,31]
[336699679,1725040249028,-500.0,0.00034849,31]
[336699680,1725040249038,-500.0,0.00034849,31]
[336699681,1725040249049,-500.0,0.00034849,31]
[336699682,1725040249059,-500.0,0.00034849,31]
[336699683,1725040249068,-500.0,0.00034849,31]
[336699684,1725040249077,-500.0,0.00034849,31]
[336699685,1725040249086,-504.05827255,0.00034849,31]
[336699686,1725040249099,-500.0,0.00034849,31]
[336699687,1725040249108,-500.0,0.00034849,31]
[336699688,1725040249117,-500.0,0.00034849,31]
[336699689,1725040249127,-501.04238566,0.00034849,31]
[336699690,1725040249136,-500.0,0.00034849,31]
[336699691,1725040249146,-500.0,0.00034849,31]
[336699692,1725040249156,-500.0,0.00034849,31]
[336699693,1725040249165,-290.40627938,0.00034849,31]
[336699694,1725040249175,-500.0,0.00034849,31]
[336699695,1725040249184,-500.0,0.00034849,31]
[336699696,1725040249195,-500.0,0.00034849,31]
[336699697,1725040249204,-503.03022032,0.00034849,31]
[336699698,1725040249214,-500.0,0.00034849,31]
[336699699,1725040249224,-500.0,0.00034849,31]
[336699700,1725040249234,-151.0,0.00034852,14]
[336699701,1725040249244,-151.0,0.00034852,14]
[336699702,1725040249254,-151.0,0.00034852,14]
[336699703,1725040249264,-500.0,0.00034864,31]
[336699704,1725040249274,-500.0,0.00034864,31]
[336699705,1725040249284,-151.0,0.00034864,14]
[336699706,1725040249293,-492.167598,0.00034865,14]
[336699707,1725040249303,-150.112233,0.000349,9]
[336699708,1725040249312,-6499.506499,0.00035,2]
[336699709,1725040249322,-2878.56,0.00035006,31]
[336699710,1725040249332,-500.0,0.00035006,31]
[336699711,1725040249342,-500.0,0.00035006,31]
[336699712,1725040249352,-946.72,0.00035006,31]
[336699713,1725040249361,-499.51103543,0.00035006,31]
[336699714,1725040249371,-500.0,0.00035006,31]
[336699715,1725040249380,-500.0,0.00035006,31]
[336699716,1725040249389,-3904.83,0.00035006,31]
[336699717,1725040249399,-500.0,0.00035006,31]
[336699718,1725040249408,-500.0,0.00035006,31]
[336699719,1725040249417,-3175.16,0.00035006,31]
[336699720,1725040249427,-2640.46,0.00035006,31]
[336699721,1725040249436,-2373.48,0.00035006,31]
[336699722,1725040249446,-500.0,0.00035006,31]
[336699723,1725040249455,-500.0,0.00035006,31]
[336699724,1725040249464,-527.32211411,0.00035006,31]
[336699725,1725040249474,-500.0,0.00035006,31]
[336699726,1725040249484,-1307.28,0.00035006,31]
[336699727,1725040249493,-500.0,0.00035006,31]
[336699728,1725040249504,-504.54,0.00035006,31]
[336699729,1725040249513,-500.0,0.00035006,31]
[336699730,1725040249522,-3031.78,0.00035006,31]
[336699731,1725040249532,-500.0,0.00035006,31]
[336699732,1725040249542,-2836.05,0.00035006,31]
[336699733,1725040249551,-500.0,0.00035007,31]
[336699734,1725040249560,-500.0,0.00035007,31]
[336699735,1725040249570,-500.0,0.00035007,31]
[336699736,1725040249581,-500.0,0.00035007,31]
[336699737,1725040249592,-500.0,0.00035007,31]
[336699738,1725040249601,-500.0,0.00035007,31]
[336699739,1725040249610,-500.0,0.00035007,31]
[336699740,1725040249619,-500.0,0.00035007,31]
[336699741,1725040249629,-500.0,0.00035007,31]
[336699742,1725040249639,-500.0,0.00035007,31]
[336699743,1725040249648,-500.0,0.00035007,31]
[336699744,1725040249658,-500.0,0.00035007,31]
[336699745,1725040249668,-500.0,0.00035007,31]
[336699746,1725040249677,-502.2377473,0.00035007,31]
[336699747,1725040249687,-500.0,0.00035007,31]
[336699748,1725040249696,-500.0,0.00035007,31]
[336699749,1725040249706,-500.0,0.00035007,31]
[336699750,1725040249715,-500.0,0.00035007,31]
[336699751,1725040249725,-282.05753105,0.00035007,31]
[336699752,1725040249735,-232.15259844,0.00035007,31]
[336699753,1725040249744,-500.0,0.00035007,31]
[336699754,1725040249754,-500.0,0.00035007,31]
[336699755,1725040249763,-500.0,0.00035007,31]
[336699756,1725040249773,-500.0,0.00035007,31]
[336699757,1725040249785,-653.44,0.00035007,31]
[336699758,1725040249795,-500.0,0.00035007,31]
[336699759,1725040249805,-151.0,0.00035007,14]
[336699760,1725040249815,-151.0,0.00035007,14]
[336699761,1725040249826,-500.0,0.00035007,31]
[336699762,1725040249835,-500.0,0.00035007,31]
[336699763,1725040249847,-519.9009568,0.00035007,31]
[336699764,1725040249857,-1750.0,0.00035007,31]
[336699765,1725040249866,-3011.64,0.00035012,31]
[336699766,1725040249876,-4543.6203812,0.00035012,8]
[336699819,1725041346690,161.801809,0.00014247,2]
[336699869,1725041440387,-231.981337,0.0001863,2]
[336699870,1725041440398,-231.981337,0.00024859,2]
[336699871,1725041440407,-161.801809,0.00025405,2]
[336699872,1725041440417,-500.0,0.00026923,2]
[336699874,1725041440427,-500.0,0.00028133,2]
[336699876,1725041440437,-500.0,0.00029715,2]
[336699878,1725041440446,-2938.89036957,0.0003,2]
[336699880,1725041440456,-2871.2775374,0.00030463,2]
[336699881,1725041440467,-465.15491984,0.00030527,2]
[336699882,1725041440476,-500.0,0.00030651,7]
[336699883,1725041440486,-231.981337,0.00031089,2]
[336699884,1725041440496,-195.957411,0.00031096,2]
[336699885,1725041440506,-195.957411,0.00031906,2]
[336699886,1725041440517,-150.0,0.00032491,14]
[336699887,1725041440527,-150.0,0.00032491,14]
[336699888,1725041440536,-200.0,0.00032491,14]
[336699889,1725041440546,-195.957411,0.00032716,2]
[336699890,1725041440556,-306.0,0.00033975,2]
[336699891,1725041440565,-207.8512623,0.00033975,2]
[336699892,1725041440575,-207.8512623,0.00033975,2]
[336699893,1725041440585,-207.8512623,0.00033975,2]
[336699894,1725041440595,-207.8512623,0.00033975,2]
[336699895,1725041440605,-207.8512623,0.00033975,2]
[336699896,1725041440615,-207.8512623,0.00033975,2]
[336699897,1725041440624,-207.8512623,0.00033975,2]
[336699898,1725041440633,-207.8512623,0.00033975,2]
[336699899,1725041440644,-500.0,0.00034112,7]
[336699900,1725041440653,-451.8415669,0.00034122,2]
[336699901,1725041440663,-409.5167953,0.00034149,60]
[336699902,1725041440673,-409.5167953,0.00034149,60]
[336699903,1725041440684,-409.5167953,0.00034149,60]
[336699904,1725041440695,-409.5167953,0.00034149,60]
[336699905,1725041440705,-409.5167953,0.00034149,60]
[336699906,1725041440714,-153.0,0.00034329,2]
[336699907,1725041440724,-153.0,0.00034329,2]
[336699908,1725041440734,-153.0,0.00034329,2]
[336699909,1725041440743,-153.0,0.00034329,2]
[336699910,1725041440753,-2169.52484557,0.00034341,2]
[336699911,1725041440765,-2000.0,0.00034343,2]
[336699912,1725041440775,-226.34983849,0.00034343,2]
[336699913,1725041440785,-4723.03,0.00034432,3]
[336699914,1725041440795,-3935.86,0.00034432,3]
[336699915,1725041440805,-2830.52,0.00034441,31]
[336699916,1725041440815,-500.0,0.00034441,31]
[336699917,1725041440825,-948.94,0.00034441,31]
[336699918,1725041440837,-500.0,0.00034441,31]
[336699919,1725041440848,-500.0,0.00034441,31]
[336699920,1725041440857,-500.0,0.00034441,31]
[336699921,1725041440866,-500.0,0.00034441,31]
[336699922,1725041440876,-3799.44,0.00034441,31]
[336699923,1725041440886,-500.0,0.00034441,31]
[336699924,1725041440896,-500.0,0.00034441,31]
[336699925,1725041440907,-3115.15,0.00034441,31]
[336699926,1725041440919,-2327.3,0.00034441,31]
[336699927,1725041440931,-2603.04,0.00034441,31]
[336699928,1725041440942,-500.0,0.00034441,31]
[336699929,1725041440954,-500.0,0.00034441,31]
[336699930,1725041440964,-480.0011477,0.00034441,31]
[336699931,1725041440973,-1252.81,0.00034441,31]
[336699932,1725041440983,-500.0,0.00034441,31]
[336699933,1725041440992,-500.0,0.00034441,31]
[336699934,1725041441002,-500.0,0.00034441,31]
[336699935,1725041441012,-525.19,0.00034441,31]
[336699936,1725041441023,-500.0,0.00034441,31]
[336699937,1725041441032,-2950.21,0.00034441,31]
[336699938,1725041441042,-3130.01,0.00034441,31]
[336699939,1725041441052,-16223.28716634,0.00034442,4]
[336699940,1725041441064,-1977.6301833,0.00034442,4]
[336699950,1725041443239,-375.36131286,0.00034441,31]
[336699951,1725041443248,-500.0,0.00034441,31]
[336699952,1725041443258,-9492.84028776,0.00034442,4]
[336699953,1725041443271,-73467.06585224,0.00034442,4]
[336699954,1725041443283,-101766.30511436,0.00034442,4]
[336699955,1725041443293,-500.0,0.00034447,31]
[336699956,1725041443303,-2965.11,0.00034447,31]
[336699957,1725041443312,-10637.34,0.00034447,8]
[336699958,1725041443322,-500.0,0.00034447,31]
[336699959,1725041443333,-500.0,0.00034447,31]
[336699960,1725041443343,-1050.18,0.00034447,21]
[336699961,1725041443353,-500.0,0.00034447,31]
[336699962,1725041443364,-500.0,0.00034447,31]
[336699963,1725041443374,-1514.2,0.00034447,31]
[336699964,1725041443383,-500.0,0.00034447,31]
[336699965,1725041443392,-500.0,0.00034447,31]
[336699966,1725041443401,-500.0,0.00034447,31]
[336699967,1725041443411,-959.11,0.00034447,31]
[336699969,1725041443421,-500.0,0.00034447,31]
[336699971,1725041443431,-352.10720609,0.00034447,31]
[336699972,1725041443442,-500.0,0.00034447,31]
[336699973,1725041443452,-500.0,0.00034447,31]
[336699974,1725041443462,-500.0,0.00034447,31]
[336699975,1725041443471,-500.0,0.00034447,31]
[336699976,1725041443481,-500.0,0.00034447,31]
[336699977,1725041443490,-500.0,0.00034447,31]
[336699978,1725041443499,-500.0,0.00034447,31]
[336699979,1725041443508,-500.0,0.00034447,31]
[336699980,1725041443518,-1583.14,0.00034447,31]
[336699981,1725041443529,-500.0,0.00034447,31]
[336699982,1725041443540,-1028.39,0.00034447,31]
[336699983,1725041443550,-500.0,0.00034447,31]
[336699984,1725041443562,-500.0,0.00034447,31]
[336699985,1725041443571,-500.0,0.00034447,31]
[336699986,1725041443580,-500.0,0.00034447,31]
[336699987,1725041443589,-1201.84,0.00034447,31]
[336699988,1725041443598,-500.0,0.00034447,31]
[336699989,1725041443607,-500.0,0.00034447,31]
[336699990,1725041443617,-500.0,0.00034447,31]
[336699991,1725041443627,-2713.13,0.00034447,31]
[336699992,1725041443636,-500.0,0.00034447,31]
[336699993,1725041443646,-500.0,0.00034447,31]
[336699994,1725041443656,-500.0,0.00034447,31]
[336699995,1725041443665,-4356.45,0.00034447,31]
[336699996,1725041443675,-500.0,0.00034447,31]
[336699997,1725041443687,-500.0,0.00034447,31]
[336699998,1725041443696,-500.0,0.00034447,31]
[336699999,1725041443705,-500.0,0.00034447,31]
[336700000,1725041443715,-500.0,0.00034447,31]
[336700001,1725041443726,-327.8482235,0.00034447,7]
[336700002,1725041443738,-160.2409528,0.00034447,7]